Workbook

Sheet паспорт
A1: ПАТ "УКРТРАНСГАЗ" | G1: ПАСПОРТ ФІЗИКО-ХІМІЧНИХ ПОКАЗНИКІВ ПРИРОДНОГО ГАЗУ № 27
A2: Філія "УМГ "КИЇВТРАНСГАЗ" | G2: переданого Боярським ЛВУМГ та прийнятого ПАТ "Київоблгаз", ПАТ "Київгаз"
A3: Боярське ЛВУМГ | G3: Маршрут №27
A4: Вимірювальна хіміко-аналітична лабораторія
A5: Свідоцтво № 70А-43-14 чинно до 23.07.2019 р. | K5: по газопроводу "ТУЛА - ШОСТКА - КИЇВ" | V5: за період з | X5: 2017-02-01 | Z5: по | AA5: 2017-02-28
A7: Число місяця | B7: Компонентний склад, % мол. | N7: Фізико-хімічні показники газу обчислені на основі компонентного складу, 101,325 кПа | X7: Температура точки роси за вологою (Р = 3.92 МПа), ºС | Y7: Температура точки роси за вуглеводнями, ºС | Z7: Вміст сірководню, г/м3 | AA7: Вміст меркаптанової сірки, г/м3 | AB7: Вміст механічних домішок, г/м3
N8: Густина абсолютна, кг/м3,при 20 ºС, | O8: Температура вимірювання/згоряння при 20/25°С
B9: метан, С1 | C9: етан, С2 | D9: пропан, С3 | E9: ізо-бутан, і-С4 | F9: н-бутан, н-С4 | G9: нео-пентан, нео-С5 | H9: ізо-пентан, і-С5 | I9: н-пентан, н-С5 | J9: гексани та вищі, С6+ | K9: кисень, О2 | L9: азот, N2 | M9: діоксид вуглецю, CО2 | O9: Теплота згоряння нижча | R9: Теплота згоряння вища | U9: Число Воббе вище
O10: ккал/м3 | P10: МДж/м3 | Q10: кВт⋅год/м3 | R10: ккал/м3 | S10: МДж/м3 | T10: кВт⋅год/м3 | U10: ккал/м3 | V10: МДж/м3 | W10: кВт⋅год/м3
A11: 1 | O11: =P11*238.8459 -> 8201.968206 | P11: 34.34 | Q11: =P11/3.6 -> 9.538888889 | R11: =S11*238.8459 -> 9085.698036 | S11: 38.04 | T11: =S11/3.6 -> 10.56666667 | AC11: =SUM(B11:M11)+$K$39+$N$39 -> 0
A12: 2 | O12: =P12*238.8459 -> 8201.968206 | P12: 34.34 | Q12: 9.538888889 | R12: =S12*238.8459 -> 9085.698036 | S12: 38.04 | T12: 10.56666667 | AC12: 0
A13: 3 | O13: 8201.968206 | P13: 34.34 | Q13: 9.538888889 | R13: 9085.698036 | S13: 38.04 | T13: 10.56666667 | AC13: 0 | AD13: =IF(AC13=100,"ОК"," ") -> 
A14: 4 | O14: 8201.968206 | P14: 34.34 | Q14: 9.538888889 | R14: 9085.698036 | S14: 38.04 | T14: 10.56666667 | AC14: 0 | AD14: =IF(AC14=100,"ОК"," ") -> 
A15: 5 | O15: 8201.968206 | P15: 34.34 | Q15: 9.538888889 | R15: 9085.698036 | S15: 38.04 | T15: 10.56666667 | AC15: 0
A16: 6 | O16: 8201.968206 | P16: 34.34 | Q16: 9.538888889 | R16: 9085.698036 | S16: 38.04 | T16: 10.56666667 | AC16: 0
A17: 7 | B17: 91.2256 | C17: 4.2326 | D17: 0.8981 | E17: 0.1059 | F17: 0.147 | G17: 0.0031 | H17: 0.037 | I17: 0.0295 | J17: 0.0564 | K17: 0.0064 | L17: 1.3608 | M17: 1.8976 | N17: 0.7403 | O17: 8182.860534 | P17: 34.26 | Q17: 9.516666667 | R17: 9066.590364 | S17: 37.96 | T17: 10.54444444 | U17: =V17*238.8459 -> 11562.53002 | V17: 48.41 | W17: =V17/3.6 -> 13.44722222 | AC17: 100 | AD17: ОК
A18: 8 | O18: 8182.860534 | P18: 34.26 | Q18: 9.516666667 | R18: 9066.590364 | S18: 37.96 | T18: 10.54444444 | AC18: 0
A19: 9 | O19: 8182.860534 | P19: 34.26 | Q19: 9.516666667 | R19: 9066.590364 | S19: 37.96 | T19: 10.54444444 | AC19: 0
A20: 10 | O20: 8182.860534 | P20: 34.26 | Q20: 9.516666667 | R20: 9066.590364 | S20: 37.96 | T20: 10.54444444 | AC20: 0
A21: 11 | O21: 8182.860534 | P21: 34.26 | Q21: 9.516666667 | R21: 9066.590364 | S21: 37.96 | T21: 10.54444444 | AC21: 0
A22: 12 | O22: 8182.860534 | P22: 34.26 | Q22: 9.516666667 | R22: 9066.590364 | S22: 37.96 | T22: 10.54444444 | AC22: 0
A23: 13 | B23: 91.3349 | C23: 4.1805 | D23: 0.9138 | E23: 0.1078 | F23: 0.148 | G23: 0.0031 | H23: 0.0374 | I23: 0.031 | J23: 0.0578 | K23: 0.0089 | L23: 1.3829 | M23: 1.794 | N23: 0.7392 | O23: 8187.637452 | P23: 34.28 | Q23: 9.522222222 | R23: 9073.755741 | S23: 37.99 | T23: 10.55277778 | U23: =V23*238.8459 -> 11581.63769 | V23: 48.49 | W23: =V23/3.6 -> 13.46944444 | X23: -16.5 | Y23: -16.5 | AC23: 100.0001
A24: 14 | O24: 8187.637452 | P24: 34.28 | Q24: 9.522222222 | R24: 9073.755741 | S24: 37.99 | T24: 10.55277778 | AC24: 0
A25: 15 | O25: 8187.637452 | P25: 34.28 | Q25: 9.522222222 | R25: 9073.755741 | S25: 37.99 | T25: 10.55277778 | AC25: 0
A26: 16 | O26: 8187.637452 | P26: 34.28 | Q26: 9.522222222 | R26: 9073.755741 | S26: 37.99 | T26: 10.55277778 | AC26: 0
A27: 17 | O27: 8187.637452 | P27: 34.28 | Q27: 9.522222222 | R27: 9073.755741 | S27: 37.99 | T27: 10.55277778 | AC27: 0
A28: 18 | O28: 8187.637452 | P28: 34.28 | Q28: 9.522222222 | R28: 9073.755741 | S28: 37.99 | T28: 10.55277778 | AC28: 0
A29: 19 | O29: 8187.637452 | P29: 34.28 | Q29: 9.522222222 | R29: 9073.755741 | S29: 37.99 | T29: 10.55277778 | AC29: 0
A30: 20 | B30: 90.2561 | C30: 4.6153 | D30: 0.9722 | E30: 0.1063 | F30: 0.1579 | G30: 0.0035 | H30: 0.0423 | I30: 0.0344 | J30: 0.0702 | K30: 0.0098 | L30: 1.5589 | M30: 2.1732 | N30: 0.7485 | O30: 8185.248993 | P30: 34.27 | Q30: 9.519444444 | R30: 9068.978823 | S30: 37.97 | T30: 10.54722222 | U30: =V30*238.8459 -> 11502.81854 | V30: 48.16 | W30: =V30/3.6 -> 13.37777778 | AC30: 100.0001 | AD30: =IF(AC30=100,"ОК"," ") -> 
A31: 21 | O31: =P31*238.8459 -> 8185.248993 | P31: 34.27 | Q31: =P31/3.6 -> 9.519444444 | R31: =S31*238.8459 -> 9068.978823 | S31: 37.97 | T31: =S31/3.6 -> 10.54722222 | AC31: 0
A32: 22 | O32: 8185.248993 | P32: 34.27 | Q32: 9.519444444 | R32: 9068.978823 | S32: 37.97 | T32: 10.54722222 | AC32: 0
A33: 23 | O33: 8185.248993 | P33: 34.27 | Q33: =P33/3.6 -> 9.519444444 | R33: 9068.978823 | S33: 37.97 | T33: =S33/3.6 -> 10.54722222 | AC33: 0 | AD33: =IF(AC33=100,"ОК"," ") -> 
A34: 24 | O34: 8185.248993 | P34: 34.27 | Q34: 9.519444444 | R34: 9068.978823 | S34: 37.97 | T34: 10.54722222 | AC34: 0
A35: 25 | O35: 8185.248993 | P35: 34.27 | Q35: 9.519444444 | R35: 9068.978823 | S35: 37.97 | T35: 10.54722222 | AC35: 0
A36: 26 | O36: 8185.248993 | P36: 34.27 | Q36: 9.519444444 | R36: 9068.978823 | S36: 37.97 | T36: =S36/3.6 -> 10.54722222 | AC36: 0
A37: 27 | B37: 89.8471 | C37: 4.8298 | D37: 0.9792 | E37: 0.1058 | F37: 0.1586 | G37: 0.0034 | H37: 0.0425 | I37: 0.0363 | J37: 0.0691 | K37: 0.0084 | L37: 1.5688 | M37: 2.3509 | N37: 0.752 | O37: 8185.248993 | P37: 34.27 | Q37: 9.519444444 | R37: 9066.590364 | S37: 37.96 | T37: 10.54444444 | U37: =V37*238.8459 -> 11476.54549 | V37: 48.05 | W37: =V37/3.6 -> 13.34722222 | Z37: 0.006 | AA37: 0.02 | AB37: відсут | AC37: 99.9999
A38: 28 | O38: 8185.248993 | P38: 34.27 | Q38: 9.519444444 | R38: 9066.590364 | S38: 37.96 | T38: 10.54444444 | AC38: 0
A39: Рівень одоризації відповідає чинним нормативним документам | O39: 8189 | P39: 34.29 | Q39: 9.52 | R39: 9073 | S39: 37.99 | T39: 10.55
H40: Середньозважене значення теплоти згоряння:
B43: Головний інженер Боярського ЛВУМГ Табак С.М. 01.03.2017 р.
C44: Підрозділу підприємства, якому підпорядкована лабораторія | O44: прізвище | R44: підпис | V44: дата
B45: Завідувач вимірювальної хіміко-аналітичної лабораторії Клименко І.А. 01.03.2017 р.
C46: Лабораторія, де здійснювалось вимірювання газу | O46: прізвище | R46: підпис | V46: дата
B47: Начальник служби газовимірювань та метрології Прима Ю.І. 01.03.2017 р.
C48: Підрозділу, відповідального за облік газу за маршрутом | O48: прізвище | R48: підпис | V48: дата

Sheet додаток
A2: Додаток до Паспорту фізико-хімічних показників природного газу №27
A4: Область | B4: ГРС, прямий споживач | C4: Cередньозважене значення вищої теплоти згоряння
C5: МДж/м³ | D5: ккал/м³ | E5: кВт*год./м³
A6: Київська область | B6: ГРС ТЕЦ-6 | C6: 37.98686937 | D6: 9073.008003 | E6: 10.55190816
B7: ГРС Требухів | C7: 37.98797893 | D7: 9073.273016 | E7: 10.55221637
B8: ГРС Дударків | C8: 37.9875834 | D8: 9073.178546 | E8: 10.5521065
B9: ГРС Плоске | C9: 37.98796867 | D9: 9073.270565 | E9: 10.55221352
B10: ГРС Русанів | C10: 37.98757545 | D10: 9073.176647 | E10: 10.55210429
B11: ГРС Бориспіль | C11: 37.98774328 | D11: 9073.216732 | E11: 10.55215091
B12: ГРС - 4 (місто) | C12: 37.98716919 | D12: 9073.079613 | E12: 10.55199144
B13: ГРС -4 (ТЕЦ) | C13: 37.9867961 | D13: 9072.990502 | E13: 10.5518878
B14: АГНКС №3 м.Київ | C14: 37.98670911 | D14: 9072.969725 | E14: 10.55186364
B15: АГНКС Бровари | C15: 37.98534563 | D15: 9072.644064 | E15: 10.5514849
A16: Середньозважене значення вищої теплоти згоряння по маршруту № 27 | C16: =AVERAGE(C6:C15) -> 37.98717391 | D16: =AVERAGE(D6:D15) -> 9073.080741 | E16: =AVERAGE(E6:E15) -> 10.55199275
A20: Головний інженер Боярського ЛВУМГ Табак С.М. 01.03.2017 р.
A21: Підрозділу підприємства, якому підпорядкована лабораторія | D21: прізвище | E21: підпис | F21: дата
A22: Завідувач вимірювальної хіміко-аналітичної лабораторії Клименко І.А. 01.03.2017 р.
A23: Лабораторія, де здійснювалось вимірювання газу | D23: прізвище | E23: підпис | F23: дата
A24: Начальник служби газовимірювань та метрології Прима Ю.І. 01.03.2017 р.
A25: Підрозділу, відповідального за облік газу за маршрутом | D25: прізвище | E25: підпис | F25: дата

Sheet variablesList (hidden)
A1: 3 | B1: x:\gaysin | C1: 10, 11, 24, 25, 127, 128, 132, 180, 207, 215 | D1: x:\
B2: x:\Illinci
B3: x:\Talne
